fUST/lending_fUST_20240421
["ID","MTS","AMOUNT","RATE_DAILY","PERIOD"]
[323114554,1713677443430,-151.0,0.00021817,2]
[323114555,1713677443439,-151.0,0.00021817,2]
[323114556,1713677443448,-151.0,0.00021817,2]
[323114557,1713677443458,-151.0,0.00021817,2]
[323114558,1713677443468,-1000.0,0.000219,2]
[323114559,1713677443477,-153.0,0.000219,2]
[323114560,1713677443488,-153.0,0.000219,2]
[323114561,1713677443497,-153.0,0.000219,2]
[323114562,1713677443507,-153.0,0.000219,2]
[323114563,1713677443516,-153.0,0.000219,2]
[323114564,1713677443525,-203.4508895,0.000219,2]
[323114565,1713677443534,-153.0,0.000219,2]
[323114566,1713677443543,-306.0,0.000219,2]
[323114567,1713677443553,-153.0,0.000219,2]
[323114568,1713677443562,-153.0,0.000219,2]
[323114569,1713677443571,-203.4508895,0.000219,2]
[323114570,1713677443580,-153.0,0.000219,2]
[323114571,1713677443589,-405.177823,0.000219,2]
[323114572,1713677443599,-153.0,0.000219,2]
[323114573,1713677443608,-153.0,0.000219,2]
[323114574,1713677443618,-153.0,0.000219,2]
[323114575,1713677443628,-153.0,0.000219,2]
[323114576,1713677443638,-325.6051023,0.000219,2]
[323114577,1713677443647,-203.4508895,0.000219,2]
[323114578,1713677443658,-153.0,0.000219,2]
[323114579,1713677443667,-153.0,0.000219,2]
[323114580,1713677443676,-153.0,0.000219,2]
[323114581,1713677443687,-153.0,0.000219,2]
[323114582,1713677443697,-153.0,0.000219,2]
[323114583,1713677443707,-406.901779,0.000219,2]
[323114584,1713677443717,-153.0,0.000219,2]
[323114585,1713677443731,-203.4508895,0.000219,2]
[323114586,1713677443742,-153.0,0.000219,2]
[323114587,1713677443753,-153.0,0.000219,2]
[323114588,1713677443763,-153.0,0.000219,2]
[323114589,1713677443773,-153.0,0.000219,2]
[323114590,1713677443783,-203.4508895,0.000219,2]
[323114591,1713677443792,-203.4508895,0.000219,2]
[323114592,1713677443802,-153.0,0.000219,2]
[323114593,1713677443812,-153.0,0.000219,2]
[323114594,1713677443821,-203.4508895,0.000219,2]
[323114595,1713677443831,-155.2596708,0.000219,2]
[323114596,1713677443840,-153.0,0.000219,2]
[323114597,1713677443849,-153.0,0.000219,2]
[323114598,1713677443859,-203.4508895,0.000219,2]
[323114599,1713677443869,-153.0,0.000219,2]
[323114600,1713677443879,-153.0,0.000219,2]
[323114601,1713677443889,-153.0,0.000219,2]
[323114602,1713677443900,-153.0,0.000219,2]
[323114603,1713677443909,-153.0,0.000219,2]
[323114604,1713677443918,-203.4958838,0.000219,2]
[323114605,1713677443927,-179.66037051,0.00021915,2]
[323114606,1713677443936,-1200.83645075,0.00021915,2]
[323114607,1713677443946,-539.43970623,0.00021915,2]
[323114608,1713677443955,-361.75151942,0.00021915,2]
[323114609,1713677443964,-485.120204,0.00021915,2]
[323114610,1713677443973,-485.120204,0.00021915,2]
[323114611,1713677443983,-151.0,0.00021915,2]
[323114612,1713677443992,-151.0,0.00021915,2]
[323114613,1713677444002,-191.252134,0.00021915,2]
[323114614,1713677444011,-6666.76642804,0.00021916,2]
[323114615,1713677444020,-151.0,0.00021916,2]
[323114616,1713677444030,-151.0,0.00021916,2]
[323114617,1713677444039,-187.236183,0.00021916,2]
[323114618,1713677444048,-485.120204,0.00021916,2]
[323114619,1713677444057,-485.120204,0.00021916,2]
[323114620,1713677444066,-485.120204,0.00021916,2]
[323114621,1713677444076,-485.120204,0.00021916,2]
[323114622,1713677444087,-485.120204,0.00021916,2]
[323114623,1713677444096,-485.120198,0.00021916,2]
[323114624,1713677444105,-151.0,0.00021916,2]
[323114625,1713677444114,-151.0,0.00021916,2]
[323114626,1713677444123,-151.0,0.00021916,2]
[323114627,1713677444132,-500.0,0.00021917,2]
[323114628,1713677444142,-500.0,0.00021917,2]
[323114629,1713677444152,-514.09278704,0.00021917,2]
[323114630,1713677444161,-512.02119366,0.00021917,2]
[323114631,1713677444181,-499.45522443,0.00021917,2]
[323114632,1713677444192,-500.0,0.00021917,2]
[323114633,1713677444202,-500.0,0.00021917,2]
[323114634,1713677444211,-500.0,0.00021917,2]
[323114635,1713677444220,-516.62823142,0.00021917,2]
[323114636,1713677444230,-500.0,0.00021917,2]
[323114637,1713677444240,-500.0,0.00021917,2]
[323114638,1713677444250,-654.2,0.00021917,2]
[323114639,1713677444259,-500.0,0.00021917,2]
[323114640,1713677444269,-356.7089209,0.00021917,2]
[323114641,1713677444279,-506.57399351,0.00021917,2]
[323114642,1713677444289,-376.14506913,0.00021917,2]
[323114643,1713677444299,-500.0,0.00021917,2]
[323114644,1713677444308,-500.0,0.00021917,2]
[323114645,1713677444318,-500.0,0.00021917,2]
[323114646,1713677444327,-1593.83,0.00021917,2]
[323114647,1713677444337,-514.9079721,0.00021917,2]
[323114648,1713677444346,-503.70157874,0.00021917,2]
[323114649,1713677444356,-500.96894798,0.00021917,2]
[323114650,1713677444365,-513.69219065,0.00021917,2]
[323114651,1713677444375,-500.0,0.00021917,2]
[323114652,1713677444384,-533.95198972,0.00021917,2]
[323114653,1713677444394,-500.0,0.00021917,2]
[323114654,1713677444403,-500.0,0.00021917,2]
[323114655,1713677444413,-500.0,0.00021917,2]
[323114656,1713677444423,-423.22310033,0.00021917,2]
[323114657,1713677444433,-500.0,0.00021917,2]
[323114658,1713677444442,-500.0,0.00021917,2]
[323114659,1713677444452,-500.0,0.00021917,2]
[323114660,1713677444461,-500.0,0.00021917,2]
[323114661,1713677444470,-500.0,0.00021917,2]
[323114662,1713677444480,-514.19186422,0.00021917,2]
[323114663,1713677444490,-500.0,0.00021917,2]
[323114664,1713677444500,-502.93859288,0.00021917,2]
[323114665,1713677444509,-512.22751472,0.00021917,2]
[323114666,1713677444519,-528.55258464,0.00021917,2]
[323114667,1713677444529,-843.26,0.00021917,2]
[323114668,1713677444538,-504.37114288,0.00021917,2]
[323114669,1713677444548,-342.85342853,0.00021917,2]
[323114670,1713677444558,-502.45541341,0.00021917,2]
[323114671,1713677444567,-500.0,0.00021917,2]
[323114672,1713677444578,-500.0,0.00021917,2]
[323114673,1713677444587,-504.88520862,0.00021917,2]
[323114674,1713677444596,-346.14346746,0.00021917,2]
[323114675,1713677444606,-504.82991669,0.00021917,2]
[323114676,1713677444615,-500.0,0.00021917,2]
[323114677,1713677444624,-510.64079701,0.00021917,2]
[323114678,1713677444633,-527.5925423,0.00021917,2]
[323114679,1713677444643,-500.0,0.00021917,2]
[323114680,1713677444652,-500.0,0.00021917,2]
[323114681,1713677444661,-526.94280929,0.00021917,2]
[323114682,1713677444671,-511.73005325,0.00021917,2]
[323114683,1713677444680,-500.0,0.00021917,2]
[323114684,1713677444690,-505.75842646,0.00021917,2]
[323114685,1713677444701,-635.38589258,0.00021917,2]
[323114686,1713677444711,-508.91488848,0.00021917,2]
[323114687,1713677444721,-501.1185184,0.00021917,2]
[323114688,1713677444734,-501.19224543,0.00021917,2]
[323114689,1713677444745,-500.0,0.00021917,2]
[323114690,1713677444756,-599.77867144,0.00021917,2]
[323114691,1713677444766,-500.0,0.00021917,2]
[323114692,1713677444776,-500.0,0.00021917,2]
[323114693,1713677444785,-501.56761405,0.00021917,2]
[323114694,1713677444794,-616.02270007,0.00021917,2]
[323114695,1713677444805,-503.49389116,0.00021917,2]
[323114696,1713677444818,-565.1072154,0.00021917,2]
[323114697,1713677444828,-500.62784997,0.00021917,2]
[323114698,1713677444839,-509.28914217,0.00021917,2]
[323114699,1713677444848,-503.34890146,0.00021917,2]
[323114700,1713677444860,-504.23048148,0.00021917,2]
[323114701,1713677444870,-500.0,0.00021917,2]
[323114702,1713677444881,-542.07469253,0.00021917,2]
[323114703,1713677444892,-500.0,0.00021917,2]
[323114704,1713677444903,-500.0,0.00021917,2]
[323114705,1713677444913,-500.0,0.00021917,2]
[323114706,1713677444924,-500.0,0.00021917,2]
[323114707,1713677444934,-500.0,0.00021917,2]
[323114708,1713677444946,-500.0,0.00021917,2]
[323114709,1713677444957,-500.0,0.00021917,2]
[323114710,1713677444967,-306.10884082,0.00021917,2]
[323114711,1713677444976,-500.0,0.00021917,2]
[323114712,1713677444987,-961.37,0.00021917,2]
[323114713,1713677444996,-500.0,0.00021917,2]
[323114714,1713677445005,-1218.19,0.00021917,2]
[323114715,1713677445015,-505.1788024,0.00021917,2]
[323114716,1713677445026,-505.11762555,0.00021917,2]
[323114717,1713677445036,-502.50957193,0.00021917,2]
[323114718,1713677445046,-1059.55,0.00021917,2]
[323114719,1713677445151,-2023.62,0.00021917,2]
[323114720,1713677445161,-496.65029045,0.00021917,2]
[323114721,1713677445171,-504.73390716,0.00021917,2]
[323114722,1713677445179,-512.2249206,0.00021917,2]
[323114723,1713677445189,-585.02694606,0.00021917,2]
[323114724,1713677445198,-500.0,0.00021917,2]
[323114725,1713677445207,-500.0,0.00021917,2]
[323114726,1713677445217,-500.0,0.00021917,2]
[323114727,1713677445226,-500.0,0.00021917,2]
[323114728,1713677445235,-183.74949711,0.00021917,2]
[323114729,1713677445244,-500.0,0.00021917,2]
[323114730,1713677445253,-501.65022449,0.00021917,2]
[323114731,1713677445262,-545.8451378,0.00021917,2]
[323114732,1713677445271,-500.0,0.00021917,2]
[323114734,1713677445280,-500.0,0.00021917,2]
[323114735,1713677445290,-500.0,0.00021917,2]
[323114736,1713677445299,-500.0,0.00021917,2]
[323114737,1713677445308,-500.0,0.00021917,2]
[323114738,1713677445320,-500.10854789,0.00021917,2]
[323114739,1713677445329,-270.48903071,0.00021917,2]
[323114740,1713677445339,-500.0,0.00021917,2]
[323114741,1713677445348,-500.0,0.00021917,2]
[323114742,1713677445357,-503.95445379,0.00021917,2]
[323114743,1713677445366,-501.83598189,0.00021917,2]
[323114744,1713677445376,-511.46875585,0.00021917,2]
[323114745,1713677445385,-500.0,0.00021917,2]
[323114746,1713677445394,-500.0,0.00021917,2]
[323114747,1713677445403,-590.40921536,0.00021917,2]
[323114748,1713677445413,-500.0,0.00021917,2]
[323114749,1713677445423,-500.0,0.00021917,2]
[323114750,1713677445432,-500.0,0.00021917,2]
[323114751,1713677445442,-500.0,0.00021917,2]
[323114752,1713677445451,-500.0,0.00021917,2]
[323114753,1713677445460,-500.0,0.00021917,2]
[323114754,1713677445469,-502.24278635,0.00021917,2]
[323114756,1713677445479,-500.0,0.00021917,2]
[323114758,1713677445489,-518.76254653,0.00021917,2]
[323114760,1713677445498,-542.07,0.00021917,2]
[323114762,1713677445506,-503.9246656,0.00021917,2]
[323114764,1713677445516,-511.24356313,0.00021917,2]
[323114765,1713677445525,-621.82,0.00021917,2]
[323114766,1713677445535,-500.0,0.00021917,2]
[323114767,1713677445544,-1033.14,0.00021917,2]
[323114768,1713677445553,-1247.63,0.00021917,2]
[323114769,1713677445562,-500.0,0.00021917,2]
[323114770,1713677445571,-500.0,0.00021917,2]
[323114771,1713677445581,-500.0,0.00021917,2]
[323114772,1713677445590,-923.18,0.00021917,2]
[323114773,1713677445599,-500.0,0.00021917,2]
[323114775,1713677445608,-511.74571156,0.00021917,2]
[323114776,1713677445617,-500.0,0.00021917,2]
[323114777,1713677445626,-613.84604415,0.00021917,2]
[323114778,1713677445635,-151.0,0.00021917,2]
[323114779,1713677445644,-151.0,0.00021917,2]
[323114780,1713677445653,-151.0,0.00021917,2]
[323114781,1713677445662,-151.0,0.00021917,2]
[323114782,1713677445671,-151.0,0.00021917,2]
[323114783,1713677445680,-151.0,0.00021917,2]
[323114784,1713677445689,-151.0,0.00021917,2]
[323114785,1713677445698,-151.0,0.00021917,2]
[323114786,1713677445707,-500.0,0.00021917,2]
[323114788,1713677445716,-500.0,0.00021917,2]
[323114790,1713677445730,-151.0,0.00021917,2]
[323114792,1713677445739,-500.0,0.00021917,2]
[323114794,1713677445748,-3023.84,0.00021917,2]
[323114796,1713677445757,-500.0,0.00021917,2]
[323114798,1713677445766,-391.73583399,0.00021917,2]
[323114800,1713677445775,-500.0,0.00021917,2]
[323114802,1713677445783,-506.26837976,0.00021917,2]
[323114804,1713677445794,-500.0,0.00021917,2]
[323114806,1713677445804,-506.41356085,0.00021917,2]
[323114808,1713677445813,-500.0,0.00021917,2]
[323114810,1713677445822,-500.0,0.00021917,2]
[323114812,1713677445831,-610.50057374,0.00021917,2]
[323114814,1713677445840,-504.02081286,0.00021917,2]
[323114816,1713677445848,-504.60895171,0.00021917,2]
[323114818,1713677445857,-458.79709458,0.00021917,2]
[323114819,1713677445866,-541.14793866,0.00021917,2]
[323114822,1713677445876,-501.10424166,0.00021917,2]
[323114823,1713677445885,-500.0,0.00021917,2]
[323114825,1713677445895,-500.0,0.00021917,2]
[323114827,1713677445904,-498.83769063,0.00021917,2]
[323114829,1713677445913,-500.0,0.00021917,2]
[323114831,1713677445922,-500.0,0.00021917,2]
[323114833,1713677445931,-512.94220683,0.00021917,2]
[323114835,1713677445940,-899.14,0.00021917,2]
[323114837,1713677445949,-500.0,0.00021917,2]
[323114839,1713677445958,-802.55,0.00021917,2]
[323114841,1713677445968,-500.0,0.00021917,2]
[323114844,1713677445977,-500.0,0.00021917,2]
[323114845,1713677445986,-500.0,0.00021917,2]
[323114847,1713677445995,-500.0,0.00021917,2]
[323114849,1713677446004,-500.0,0.00021917,2]
[323114851,1713677446013,-500.0,0.00021917,2]
[323114853,1713677446022,-500.0,0.00021917,2]
[323114855,1713677446031,-500.0,0.00021917,2]
[323114857,1713677446040,-8838.28,0.00021917,2]
[323114859,1713677446049,-500.0,0.00021917,2]
[323114861,1713677446059,-500.0,0.00021917,2]
[323114863,1713677446068,-500.0,0.00021917,2]
[323114865,1713677446078,-500.0,0.00021917,2]
[323114868,1713677446088,-500.0,0.00021917,2]
[323114869,1713677446097,-500.0,0.00021917,2]
[323114871,1713677446106,-500.0,0.00021917,2]
[323114873,1713677446115,-500.0,0.00021917,2]
[323114875,1713677446124,-500.0,0.00021917,2]
[323114877,1713677446134,-587.09914745,0.00021917,2]
[323114879,1713677446143,-500.0,0.00021917,2]
[323114881,1713677446152,-500.0,0.00021917,2]
[323114884,1713677446161,-500.0,0.00021917,2]
[323114886,1713677446170,-500.0,0.00021917,2]
[323114888,1713677446179,-500.0,0.00021917,2]
[323114890,1713677446188,-6037.01,0.00021917,2]
[323114892,1713677446197,-500.0,0.00021917,2]
[323114894,1713677446206,-200.0,0.00021917,2]
[323114895,1713677446216,-500.0,0.00021917,2]
[323114897,1713677446225,-500.0,0.00021917,2]
[323114898,1713677446234,-500.0,0.00021917,2]
[323114900,1713677446244,-1329.91,0.00021917,2]
[323114901,1713677446252,-1329.91,0.00021917,2]
[323114902,1713677446261,-1329.91,0.00021917,2]
[323114903,1713677446270,-1329.91,0.00021917,2]
[323114904,1713677446280,-1329.91,0.00021917,2]
[323114905,1713677446289,-1329.91,0.00021917,2]
[323114906,1713677446298,-1329.91,0.00021917,2]
[323114907,1713677446307,-1329.91,0.00021917,2]
[323114908,1713677446316,-1329.91,0.00021917,2]
[323114909,1713677446325,-1329.91,0.00021917,2]
[323114910,1713677446334,-424.0506633,0.00021917,2]
[323114911,1713677446343,-2164.67,0.00021917,2]
[323114912,1713677446352,-1042.71,0.00021917,2]
[323114913,1713677446362,-500.0,0.00021917,2]
[323114914,1713677446371,-500.0,0.00021917,2]
[323114915,1713677446380,-500.0,0.00021917,2]
[323114916,1713677446389,-500.0,0.00021917,2]
[323114917,1713677446398,-611.29,0.00021917,2]
[323114918,1713677446407,-504.675591,0.00021917,2]
[323114919,1713677446416,-500.0,0.00021917,2]
[323114920,1713677446426,-500.0,0.00021917,2]
[323114921,1713677446435,-500.0,0.00021917,2]
[323114922,1713677446445,-500.0,0.00021917,2]
[323114923,1713677446454,-500.0,0.00021917,2]
[323114924,1713677446463,-500.0,0.00021917,2]
[323114925,1713677446473,-500.0,0.00021917,2]
[323114926,1713677446482,-508.85,0.00021917,2]
[323114927,1713677446492,-500.0,0.00021917,2]
[323114928,1713677446501,-500.0,0.00021917,2]
[323114929,1713677446510,-500.0,0.00021917,2]
[323114930,1713677446519,-500.0,0.00021917,2]
[323114931,1713677446528,-500.0,0.00021917,2]
[323114932,1713677446537,-500.0,0.00021917,2]
[323114933,1713677446546,-500.0,0.00021917,2]
[323114934,1713677446556,-500.0,0.00021917,2]
[323114935,1713677446565,-58219.38,0.00021917,2]
[323114936,1713677446573,-510.25823631,0.00021917,2]
[323114937,1713677446582,-501.96494224,0.00021917,2]
[323114938,1713677446592,-197.288,0.00021917,2]
[323114939,1713677446601,-500.0,0.00021917,2]
[323114940,1713677446678,-500.0,0.00021917,2]
[323114941,1713677446687,-514.637661,0.00021917,2]
[323114942,1713677446696,-1005.15726249,0.00021917,2]
[323114943,1713677446705,-500.0,0.00021917,2]
[323114944,1713677446714,-500.0,0.00021917,2]
[323114945,1713677446723,-841.38,0.00021917,2]
[323114946,1713677446735,-500.0,0.00021917,2]
[323114947,1713677446745,-500.0,0.00021917,2]
[323114948,1713677446755,-508.61396081,0.00021917,2]
[323114949,1713677446764,-500.0,0.00021917,2]
[323114950,1713677446774,-1458.11,0.00021917,2]
[323114951,1713677446783,-500.0,0.00021917,2]
[323114952,1713677446792,-505.95654324,0.00021917,2]
[323114953,1713677446802,-500.0,0.00021917,2]
[323114954,1713677446811,-500.0,0.00021917,2]
[323114955,1713677446820,-500.96142743,0.00021917,2]
[323114956,1713677446829,-500.0,0.00021917,2]
[323114957,1713677446838,-408.59207595,0.00021917,2]
[323114958,1713677446847,-500.0,0.00021917,2]
[323114959,1713677446856,-500.0,0.00021917,2]
[323114960,1713677446865,-500.0,0.00021917,2]
[323114961,1713677446874,-500.0,0.00021917,2]
[323114962,1713677446883,-502.42397906,0.00021917,2]
[323114963,1713677446892,-502.42714565,0.00021917,2]
[323114964,1713677446901,-715.67,0.00021917,2]
[323114965,1713677446910,-1178.56,0.00021917,2]
[323114966,1713677446919,-500.0,0.00021917,2]
[323114967,1713677446928,-500.0,0.00021917,2]
[323114968,1713677446937,-500.0,0.00021917,2]
[323114969,1713677446946,-500.0,0.00021917,2]
[323114970,1713677446955,-500.0,0.00021917,2]
[323114971,1713677446964,-500.0,0.00021917,2]
[323114972,1713677446973,-507.90823416,0.00021917,2]
[323114973,1713677446982,-545.33446551,0.00021917,2]
[323114974,1713677446991,-2857.41,0.00021917,2]
[323114975,1713677447000,-500.0,0.00021917,2]
[323114976,1713677447010,-505.56398096,0.00021917,2]
[323114977,1713677447019,-500.0,0.00021917,2]
[323114978,1713677447028,-512.55452793,0.00021917,2]
[323114979,1713677447038,-500.0,0.00021917,2]
[323114980,1713677447047,-500.0,0.00021917,2]
[323114981,1713677447056,-505.41552766,0.00021917,2]
[323114982,1713677447066,-160.4054127,0.00021917,2]
[323114983,1713677447075,-507.54301554,0.00021917,2]
[323114984,1713677447083,-3708.2,0.00021917,2]
[323114985,1713677447093,-500.0,0.00021917,2]
[323114986,1713677447102,-500.0,0.00021917,2]
[323114987,1713677447111,-500.0,0.00021917,2]
[323114988,1713677447121,-500.0,0.00021917,2]
[323114989,1713677447130,-500.0,0.00021917,2]
[323114990,1713677447139,-500.0,0.00021917,2]
[323114991,1713677447149,-500.0,0.00021917,2]
[323114992,1713677447158,-500.0,0.00021917,2]
[323114993,1713677447167,-500.0,0.00021917,2]
[323114994,1713677447177,-500.0,0.00021917,2]
[323114995,1713677447186,-500.0,0.00021917,2]
[323114996,1713677447195,-504.09177461,0.00021917,2]
[323114997,1713677447205,-500.0,0.00021917,2]
[323114998,1713677447214,-500.0,0.00021917,2]
[323114999,1713677447224,-500.0,0.00021917,2]
[323115000,1713677447233,-500.0,0.00021917,2]
[323115001,1713677447243,-500.0,0.00021917,2]
[323115002,1713677447252,-500.0,0.00021917,2]
[323115003,1713677447261,-500.0,0.00021917,2]
[323115004,1713677447270,-515.01189313,0.00021917,2]
[323115005,1713677447279,-500.0,0.00021917,2]
[323115006,1713677447288,-2255.82,0.00021917,2]
[323115007,1713677447298,-500.0,0.00021917,2]
[323115008,1713677447307,-500.0,0.00021917,2]
[323115009,1713677447316,-500.0,0.00021917,2]
[323115010,1713677447325,-500.0,0.00021917,2]
[323115011,1713677447334,-577.93708886,0.00021917,2]
[323115012,1713677447343,-897.24,0.00021917,2]
[323115013,1713677447352,-500.0,0.00021917,2]
[323115014,1713677447361,-500.0,0.00021917,2]
[323115015,1713677447370,-500.0,0.00021917,2]
[323115016,1713677447379,-500.0,0.00021917,2]
[323115017,1713677447388,-500.0,0.00021917,2]
[323115018,1713677447397,-500.0,0.00021917,2]
[323115019,1713677447406,-500.0,0.00021917,2]
[323115020,1713677447417,-500.0,0.00021917,2]
[323115021,1713677447426,-500.0,0.00021917,2]
[323115022,1713677447434,-500.0,0.00021917,2]
[323115023,1713677447444,-284.30419264,0.00021917,2]
[323115024,1713677447453,-500.0,0.00021917,2]
[323115025,1713677447463,-500.0,0.00021917,2]
[323115026,1713677447473,-507.03210194,0.00021917,2]
[323115027,1713677447482,-6248.93,0.00021917,2]
[323115028,1713677447491,-500.0,0.00021917,2]
[323115029,1713677447500,-6248.93,0.00021917,2]
[323115030,1713677447509,-678.47,0.00021917,2]
[323115031,1713677447518,-513.44253631,0.00021917,2]
[323115032,1713677447528,-6248.93,0.00021917,2]
[323115033,1713677447537,-6248.93,0.00021917,2]
[323115034,1713677447546,-2382.79,0.00021917,2]
[323115035,1713677447555,-564.07988227,0.00021917,2]
[323115036,1713677447564,-6248.93,0.00021917,2]
[323115037,1713677447573,-500.0,0.00021917,2]
[323115038,1713677447582,-6248.93,0.00021917,2]
[323115039,1713677447592,-502.42381603,0.00021917,2]
[323115040,1713677447601,-6248.93,0.00021917,2]
[323115041,1713677447610,-6248.93,0.00021917,2]
[323115042,1713677447619,-503.83505764,0.00021917,2]
[323115043,1713677447628,-500.0,0.00021917,2]
[323115044,1713677447638,-6248.93,0.00021917,2]
[323115045,1713677447648,-504.49760136,0.00021917,2]
[323115046,1713677447657,-6248.93,0.00021917,2]
[323115047,1713677447666,-6248.93,0.00021917,2]
[323115048,1713677447674,-500.0,0.00021917,2]
[323115049,1713677447684,-525.26339244,0.00021917,2]
[323115050,1713677447693,-505.5477228,0.00021917,2]
[323115051,1713677447702,-505.55123621,0.00021917,2]
[323115052,1713677447711,-500.0,0.00021917,2]
[323115053,1713677447720,-833.32,0.00021917,2]
[323115054,1713677447734,-2090.36,0.00021917,2]
[323115055,1713677447743,-284.52224066,0.00021917,2]
[323115056,1713677447752,-496.56331965,0.00021917,2]
[323115057,1713677447761,-500.0,0.00021917,2]
[323115058,1713677447770,-500.0,0.00021917,2]
[323115059,1713677447780,-518.28427718,0.00021917,2]
[323115060,1713677447788,-368.49564207,0.00021917,2]
[323115061,1713677447797,-500.0,0.00021917,2]
[323115062,1713677447807,-500.0,0.00021917,2]
[323115063,1713677447816,-568.95,0.00021917,2]
[323115064,1713677447825,-500.0,0.00021917,2]
[323115065,1713677447834,-500.0,0.00021917,2]
[323115066,1713677447843,-500.0,0.00021917,2]
[323115067,1713677447852,-500.0,0.00021917,2]
[323115068,1713677447861,-500.0,0.00021917,2]
[323115069,1713677447870,-500.0,0.00021917,2]
[323115070,1713677447879,-500.0,0.00021917,2]
[323115071,1713677447888,-500.0,0.00021917,2]
[323115072,1713677447897,-150.0,0.00021917,2]
[323115073,1713677447906,-500.0,0.00021917,2]
[323115074,1713677447915,-508.10133103,0.00021917,2]
[323115075,1713677447924,-500.0,0.00021917,2]
[323115076,1713677447933,-500.0,0.00021917,2]
[323115077,1713677447942,-1832.04,0.00021917,2]
[323115078,1713677447952,-500.0,0.00021917,2]
[323115079,1713677447961,-258.77048476,0.00021917,2]
[323115080,1713677447970,-500.0,0.00021917,2]
[323115081,1713677447979,-500.0,0.00021917,2]
[323115082,1713677447990,-505.86824263,0.00021917,2]
[323115083,1713677447998,-500.0,0.00021917,2]
[323115084,1713677448007,-502.71050553,0.00021917,2]
[323115085,1713677448080,-500.0,0.00021917,2]
[323115086,1713677448089,-533.40204482,0.00021917,2]
[323115087,1713677448098,-177.26891117,0.00021917,2]
[323115088,1713677448108,-501.76409476,0.00021917,2]
[323115089,1713677448117,-624.94,0.00021917,2]
[323115090,1713677448126,-500.0,0.00021917,2]
[323115091,1713677448135,-506.28971692,0.00021917,2]
[323115092,1713677448145,-199.58755225,0.00021917,2]
[323115093,1713677448154,-603.77596975,0.00021917,2]
[323115094,1713677448163,-500.0,0.00021917,2]
[323115095,1713677448172,-502.59862632,0.00021917,2]
[323115096,1713677448183,-1591.33,0.00021917,2]
[323115097,1713677448193,-225.10849357,0.00021917,2]
[323115098,1713677448204,-3928.67,0.00021917,2]
[323115099,1713677448213,-500.0,0.00021917,2]
[323115100,1713677448223,-507.21734694,0.00021917,2]
[323115101,1713677448232,-507.28938116,0.00021917,2]
[323115102,1713677448242,-529.27756945,0.00021917,2]
[323115103,1713677448250,-500.0,0.00021917,2]
[323115104,1713677448260,-500.0,0.00021917,2]
[323115105,1713677448269,-500.0,0.00021917,2]
[323115106,1713677448279,-506.06553323,0.00021917,2]
[323115107,1713677448289,-500.0,0.00021917,2]
[323115108,1713677448301,-425.386,0.00021952,2]
[323115109,1713677448311,-210.512,0.00021975,2]
[323115110,1713677448320,-150.124,0.00021975,2]
[323115111,1713677448330,-1329.91,0.00021998,2]
[323115112,1713677448339,-584.49970251,0.00021998,2]
[323115113,1713677448348,-500.0,0.00021998,2]
[323115114,1713677448357,-500.0,0.00021998,2]
[323115115,1713677448367,-500.0,0.00021999,2]
[323115116,1713677448376,-500.0,0.00021999,2]